Cogmind - Beta 11 X6 @@@ ROGUE MODE // 2021.07.17 @ 22:44:31 Player: Terminus Result: Self-destructed Performance ------------- Evolutions (7) 3500 Regions Visited (26) 5200 Robots Destroyed (501) 2505 Value Destroyed (20279) 20279 Prototype IDs (38) 760 Alien Tech Used (0) 0 Bonus (6648) 6648 TOTAL SCORE: 38892 Bonus ------- High Alert Combat Kills 4011 Follower Combat Kills 1004 Met Data Miner 300 Met Imprinter 300 Met Warlord at Base 500 MAIN.C Attacked Warlord 500 Warlord Defense Kill 1776 Built Enhanced Grunts 300 Met R17 at Cetus 500 Friendly Fire -2543 Cogmind --------- Core Integrity 1101/1300 Matter 293/300 Energy 18/100 System Corruption 11% Temperature Cool (0) Movement Treading (245) Ox1 Location -3/Research Parts ------- > --- POWER (1) -------- (None) > --- PROPULSION (4) --- Advanced Heavy Treads Centrium Heavy Treads > --- UTILITY (12) ----- Advanced Cooling System Huge Storage Unit Long-range Sensor Array Advanced Signal Interpreter Experimental Targeting Computer Improved Target Analyzer Advanced Transmission Jammer Improved Hacking Suite Improved Hacking Suite Advanced Hacking Suite > --- WEAPON (4) ------- Improved KE Penetrator > --- INVENTORY (25) --- Centrium Heavy Treads Coolant Network Matter Compressor (250) Advanced Targeting Computer Improved Weapon Cycler Centrium Medium Armor Plating Centrium Medium Armor Plating Cooled Plasma Cannon Railgun Railgun Railgun Railgun Improved KE Penetrator Fusion Bomb Launcher Improved Remote Datajack Improved Plasma Cutter Power Sword Peak State ------------ > --- POWER ------------ Quantum Reactor > --- PROPULSION ------- Armored Heavy Treads Centrium Heavy Treads > --- UTILITY ---------- Advanced Cooling System Huge Storage Unit Long-range Sensor Array Advanced Signal Interpreter Advanced Targeting Computer Improved Target Analyzer Advanced Transmission Jammer Centrium Medium Armor Plating Improved Hacking Suite Advanced Hacking Suite System Mapper Improved System Shield > --- WEAPON ----------- Railgun Improved KE Penetrator Improved KE Penetrator Improved KE Penetrator > --- INVENTORY -------- Improved Quantum Reactor Biometal Medium Treads Centrium Heavy Treads Centrium Heavy Treads Advanced Cooling System Coolant Network Matter Compressor Spectral Analyzer Centrium Medium Armor Plating Centrium Medium Armor Plating Improved Hacking Suite Cooled Plasma Cannon Hypervelocity Coil Gun Railgun Railgun Railgun Improved KE Penetrator Improved KE Penetrator Heavy Missile Launcher Improved Remote Datajack Improved Plasma Cutter Power Sword [Rating: 160] Favorites ----------- Power Enhanced Nuclear Core Engine Reinforced Deuterium Engine Power Core Enhanced Nuclear Core Reactor Antimatter Reactor Propulsion Light Treads Treads Light Treads Leg Carbon-fiber Leg Wheel Compact Wheel Utility Hacking Suite Device Improved Cooling System Storage Huge Storage Unit Processor Advanced Targeting Computer Hackware Hacking Suite Protection Medium Armor Plating Weapon Gauss Rifle Energy Gun Beam Rifle Energy Cannon Heavy Plasma Cannon Ballistic Gun Gauss Rifle Ballistic Cannon Gauss Cannon Launcher Heavy Missile Launcher Special Weapon Improved Plasma Cutter Slashing Weapon Axe Build | -11 -10 -10 -9 -9 -8 -7 -7 -7 -7 -6 -6 -6 -6 -6 -5 -5 -5 -5 -5 -4 -4 -4 -4 -4 -4 -3 ------- Run | Scr Mat Min Mat Min Mat Fac Low Low Zio Pro Fac Low Low Dat Pro Fac Upp Upp War Pro Fac Ext Cet Arc Hub Res Slots Evolved 14 | . . . 2 . 2 2 . . . . 2 . . . . 2 . . . . 2 . . . . 2 Power . | . . . . . . . . . . . . . . . . . . . . . . . . . . . Propulsion 2 | . . . . . 1 . . . . . 1 . . . . . . . . . . . . . . . Utility 10 | . . . 1 . 1 2 . . . . 1 . . . . 1 . . . . 2 . . . . 2 Weapon 2 | . . . 1 . . . . . . . . . . . . 1 . . . . . . . . . . Parts Attached 422 | 6 10 12 22 2 42 33 8 4 1 12 49 1 9 9 4 39 5 2 20 3 30 22 14 13 8 42 Power 20 | 1 4 1 3 . 1 2 . . . 1 1 . . 1 . 1 . . 1 . . 1 . 1 . 1 Engine 11 | 1 4 1 3 . . 1 . . . . 1 . . . . . . . . . . . . . . . Core 4 | . . . . . 1 1 . . . 1 . . . . . . . . 1 . . . . . . . Reactor 5 | . . . . . . . . . . . . . . 1 . 1 . . . . . 1 . 1 . 1 Propulsion 49 | 2 . 2 5 . 11 6 . . . 2 10 . . . . 3 . . . . 2 2 1 . . 3 Treads 46 | 2 . 2 5 . 11 4 . . . 1 10 . . . . 3 . . . . 2 2 1 . . 3 Leg 1 | . . . . . . . . . . 1 . . . . . . . . . . . . . . . . Wheel 2 | . . . . . . 2 . . . . . . . . . . . . . . . . . . . . Hover . | . . . . . . . . . . . . . . . . . . . . . . . . . . . Flight . | . . . . . . . . . . . . . . . . . . . . . . . . . . . Utility 174 | 1 4 1 5 . 11 9 1 2 . 2 22 . 6 5 3 13 3 . 11 1 24 11 7 9 4 19 Device 87 | . 3 . 3 . 4 3 1 1 . . 10 . 4 2 2 7 1 . 7 1 11 4 2 8 2 11 Storage 5 | 1 1 . . . . 2 . . . . 1 . . . . . . . . . . . . . . . Processor 15 | . . . . . . 2 . . . . 2 . 1 . . . 1 . 1 . 3 2 1 . . 2 Hackware 13 | . . . . . 1 . . . . . 4 . . . . 2 . . . . 2 . 1 . . 3 Protection 54 | . . 1 2 . 6 2 . 1 . 2 5 . 1 3 1 4 1 . 3 . 8 5 3 1 2 3 Artifact . | . . . . . . . . . . . . . . . . . . . . . . . . . . . Weapon 179 | 2 2 8 9 2 19 16 7 2 1 7 16 1 3 3 1 22 2 2 8 2 4 8 6 3 4 19 Energy Gun 6 | . . 3 2 . . . . . . . 1 . . . . . . . . . . . . . . . Energy Cannon 16 | . . . . . . . . . . . 6 1 1 . . 4 1 1 . . . 1 . . . 1 Ballistic Gun 121 | 2 2 3 7 1 14 11 5 1 . 4 4 . 1 3 1 15 1 . 8 1 4 7 5 2 4 15 Ballistic Cannon 8 | . . . . . 1 1 . . . 1 5 . . . . . . . . . . . . . . . Launcher 21 | . . 2 . 1 4 4 1 . . 2 . . . . . 3 . 1 . 1 . . 1 . . 1 Special Weapon 2 | . . . . . . . 1 . . . . . . . . . . . . . . . . 1 . . Impact Weapon . | . . . . . . . . . . . . . . . . . . . . . . . . . . . Slashing Weapon 5 | . . . . . . . . 1 1 . . . 1 . . . . . . . . . . . . 2 Piercing Weapon . | . . . . . . . . . . . . . . . . . . . . . . . . . . . Special Melee Weapon . | . . . . . . . . . . . . . . . . . . . . . . . . . . . Unidentified Prototypes 17 | . . . 4 . 1 . . . . . 3 . . . . . . . 2 . 2 1 3 . . 1 Corrupted Parts 5 | . . . . . 1 . . . . . . . . . . . . . . . . 3 1 . . . System Corruption 36 | . . . . . 6 . . . . . . . . . . . . . . . . 29 1 . . . Parts Lost 85 | . 3 3 2 . 11 12 . 2 . 9 . . . 1 2 6 1 . 2 . 8 11 . . 2 10 Power 10 | . 2 . . . . 2 . . . 1 . . . . . 1 . . 1 . . 1 . . . 2 Propulsion 18 | . . 2 . . 2 4 . . . 4 . . . . . 1 . . . . 2 2 . . . 1 Utility 24 | . 1 . 1 . 6 . . 1 . 1 . . . 1 1 . 1 . . . 3 4 . . 1 3 Weapon 33 | . . 1 1 . 3 6 . 1 . 3 . . . . 1 4 . . 1 . 3 4 . . 1 4 Highest Loss Streak 7 | . 1 3 2 . 2 4 . 2 . 5 . . . 1 1 2 1 . 1 . 3 6 . . 2 7 Average Slot Usage (%) 94 | . 98 99 99 100 99 99 100 99 100 94 97 86 85 86 86 87 88 88 87 88 88 86 89 88 88 89 Engine 4 | . 14 14 11 11 . . 7 7 7 6 . 6 6 4 . . . . . . . . . . . . Core 1 | . . . . . 8 6 . . . . 5 . . . . . . . . 5 5 2 . . . . Reactor 1 | . . . . . . . . . . . . . . 1 6 5 5 5 4 . . 2 5 5 5 3 Treads 16 | . 28 27 22 22 26 21 7 7 7 4 23 13 13 13 13 10 11 11 11 11 10 9 10 10 10 8 Wheel 1 | . . . . . . 1 15 15 15 6 . . . . . . . . . . . . . . . . Device 10 | . 13 . 11 11 8 11 14 14 15 13 9 6 5 5 12 10 10 11 9 11 11 9 10 13 10 13 Storage 7 | . 14 14 11 11 9 7 7 7 7 7 6 6 6 6 6 5 5 5 5 5 5 5 5 5 5 4 Processor 8 | . . . . . . 14 15 15 15 15 13 13 13 13 13 11 11 11 11 11 12 13 15 15 15 14 Hackware 10 | . . . . . 8 7 7 7 7 7 16 20 20 17 13 17 17 17 17 17 20 16 15 15 15 18 Protection 3 | . . 13 10 11 9 3 . . . . . . . 3 . . . . 1 . 1 3 5 . 4 3 Ballistic Gun 20 | . 27 14 31 32 26 21 19 17 15 22 5 17 15 16 20 22 17 17 20 22 20 20 20 15 17 17 Ballistic Cannon 1 | . . . . . . . 2 . . . 10 . . . . . . . . . . . . . . . Naked Turns . | . . . . . . . . . . . . . . . . . . . . . . . . . . . Heaviest Build 142 | 12 50 55 67 65 73 114 114 114 107 111 120 111 114 124 117 129 122 121 130 122 131 142 131 131 135 138 Greatest Support 150 | 40 40 40 40 40 62 68 32 32 32 32 140 140 140 140 140 140 140 140 140 140 145 145 150 150 150 150 Greatest Overweight (x) 6 | 2 1 2 1 1 1 6 3 3 3 6 1 . . . . . . . . . . 1 . . . 1 Average Overweight (x) . | . . 1 1 1 . 1 3 3 3 5 . . . . . . . . . . . . . . . . Largest Inventory Capacity 25 | 8 20 20 20 20 20 25 25 25 25 25 25 25 25 25 25 25 25 25 25 25 25 25 25 25 25 25 Average Capacity 23 | 6 18 20 20 20 20 22 25 25 25 25 25 25 25 25 25 25 25 25 25 25 25 25 25 25 25 25 Most Carried 25 | 2 16 20 20 20 20 22 18 17 18 20 25 25 25 25 25 25 25 25 25 25 25 25 25 25 25 25 Average Carried 20 | 1 11 18 19 20 19 19 16 16 16 18 22 25 25 24 24 24 24 25 24 25 21 22 24 25 23 23 Final Capacity 25 | 8 20 20 20 20 20 25 25 25 25 25 25 25 25 25 25 25 25 25 25 25 25 25 25 25 25 25 Final Carried 25 | 2 16 20 20 20 19 16 17 16 18 16 25 25 25 25 25 25 25 25 25 25 19 25 25 25 25 19 Class Distribution -------------------- 16% | Hacker-Skirmisher 15% | Scavenger-Tank 13% | Hacker-Mutant 11% | Scavenger-Mutant 10% | Hacker-Gunner 9% | Scavenger-Skirmisher 7% | Mutant 6% | Scavenger-Gunner 5% | Tank Dominant Class ---------------- Mutant | -10/Materials Scavenger-Mutant | -10/Mines Scavenger-Tank | -9/Materials Scavenger-Tank | -9/Mines Tank | -8/Materials Scavenger-Skirmisher | -7/Factory Scavenger-Skirmisher | -7/Lower Caves Scavenger-Mutant | -7/Lower Caves Scavenger-Mutant | -7/Zion Scavenger-Skirmisher | -6/Proximity Caves Hacker-Skirmisher | -6/Factory Hacker-Skirmisher | -6/Lower Caves Hacker-Mutant | -6/Lower Caves Hacker-Mutant | -6/Data Miner Machinist-Skirmisher | -5/Proximity Caves Hacker-Skirmisher | -5/Factory Hacker-Mutant | -5/Upper Caves Hacker-Mutant | -5/Upper Caves Hacker-Skirmisher | -5/Warlord Hacker-Gunner | -4/Proximity Caves Hacker-Gunner | -4/Factory Hacker-Gunner | -4/Extension Scavenger-Gunner | -4/Cetus Hacker-Mutant | -4/Archives Scavenger-Gunner | -4/Hub_04(d) Scavenger-Gunner | -3/Research Resources | -11 -10 -10 -9 -9 -8 -7 -7 -7 -7 -6 -6 -6 -6 -6 -5 -5 -5 -5 -5 -4 -4 -4 -4 -4 -4 -3 ----------- Run | Scr Mat Min Mat Min Mat Fac Low Low Zio Pro Fac Low Low Dat Pro Fac Upp Upp War Pro Fac Ext Cet Arc Hub Res Matter Collected 18116 | 214 754 190 1109 170 1530 1845 121 153 15 277 1468 8 320 645 145 2055 245 35 844 83 1449 1433 662 492 116 1738 Remotely . | . . . . . . . . . . . . . . . . . . . . . . . . . . . Salvage Created 24947 | . 870 366 1844 265 2061 2852 78 416 . 279 1430 . 488 435 190 2562 198 44 836 117 3056 2732 1128 632 216 1852 Parts 1278 | . 57 24 117 14 109 135 6 8 . 20 53 . 10 33 14 134 12 2 33 3 138 128 69 56 12 91 Haulers Intercepted 24 | . 2 . 6 . 4 . . . . . 5 . . . . 4 . . . . 1 . . . 1 1 Recyclers Shooed 21 | . . 1 1 1 . 3 . . . . 5 . . . . 2 . . . . 3 3 . . . 2 Parts Field Recycled . | . . . . . . . . . . . . . . . . . . . . . . . . . . . Retrieved Matter . | . . . . . . . . . . . . . . . . . . . . . . . . . . . Parts Self-Destructed 215 | . . . . . . . 6 1 . 20 . . 9 . 14 . 12 1 150 2 . . . . . . Prevented 9 | . . . . . . . . . . . . . . . . . . . 9 . . . . . . . Kills | -11 -10 -10 -9 -9 -8 -7 -7 -7 -7 -6 -6 -6 -6 -6 -5 -5 -5 -5 -5 -4 -4 -4 -4 -4 -4 -3 ------- Run | Scr Mat Min Mat Min Mat Fac Low Low Zio Pro Fac Low Low Dat Pro Fac Upp Upp War Pro Fac Ext Cet Arc Hub Res Combat Hostiles Destroyed 343 | . 16 9 32 7 33 46 4 1 . 11 18 . 4 4 3 25 2 5 12 4 29 31 18 3 2 24 Melee 1 | . . . . . . . . . . 1 . . . . . . . . . . . . . . . . Guns 256 | . 16 6 32 4 24 33 2 1 . 3 3 . 4 4 3 16 2 . 12 . 25 31 13 3 2 17 Cannons 16 | . . . . . . 1 . . . . 15 . . . . . . . . . . . . . . . AOE 68 | . . 3 . 3 9 12 2 . . 7 . . . . . 7 . 5 . 4 4 . 5 . . 7 Classes Destroyed 22 | . 7 1 2 . 3 4 . 1 . . . . . . . . . . 2 . . 1 . . . 1 Worker 31 | . 1 2 2 . 5 9 . . . . 1 . . . . 9 . . . . 1 1 . . . . Builder 17 | . 1 2 1 . . 5 . . . . . . . . . 6 . . . . 1 1 . . . . Tunneler 7 | . . . 1 1 1 . . . . . . . . . . 1 . . . . 2 1 . . . . Hauler 24 | . 2 . 6 . 4 . . . . . 5 . . . . 4 . . . . 1 . . . 1 1 Recycler 27 | . . . 3 3 2 8 . . . . 2 . . . . 2 . . . . 4 2 . . . 1 Mechanic 2 | . . . . . 1 1 . . . . . . . . . . . . . . . . . . . . Operator 18 | . 3 . 1 . 2 . . . . . 1 . . . . 1 . . . . . 1 . 9 . . Watcher 25 | . 3 . 4 . 4 1 . . . . 3 . . . . 3 . . . . 3 2 2 . . . Swarmer 66 | . 2 3 11 7 3 . 3 . . 7 . . . . . . . 5 . 4 4 4 8 . 1 4 Saboteur 1 | . . . . . . . . . . . . . . . . . . . . . . . . . . 1 Grunt 131 | . 14 4 11 . 15 25 . . . . 11 . 3 . . 14 . . 7 . 13 7 . . . 7 Brawler 8 | . . . . . . 5 . . . . . . . . . . . . 1 . . 1 . . . 1 Duelist 6 | . . . . . 1 3 . . . . . . . . . . . . . . 2 . . . . . Protector 6 | . . . . . . 3 . . . . . . . . . . . . . . 2 1 . . . . Sentry 36 | . . 2 10 . 6 4 . . . . 1 . . . . . . . . . 1 7 . 3 . 2 Specialist 2 | . . . . . . 2 . . . . . . . . . . . . . . . . . . . . Hunter 40 | . . . . . 8 1 . 1 . 4 1 . 1 . 1 6 2 . 1 . 4 8 . . . 2 Programmer 28 | . . . . . . 3 1 . . . 5 . . . 2 5 . . . . 5 . 2 . . 5 Heavy 3 | . . . . . . . . . . . . . . . . . . . . . . 1 . . 1 1 Cetus Guard 8 | . . . . . . . . . . . . . . . . . . . . . . . 8 . . . Enhanced Grunt 5 | . . . . . . . . . . . . . . 4 . . . . . . . . 1 . . . Striker 1 | . . . . . . . . . . . . . . . . . . . 1 . . . . . . . Executioner 2 | . . . . . . . . . . . . . . . . . . . 2 . . . . . . . Packrat 4 | . . . . . . . . 3 . . . . . . . . . . . 1 . . . . . . Samaritan 4 | . . . . . . . . 3 . . . . 1 . . . . . . . . . . . . . Thug 4 | . . . . . . . . . . . . . . . . . . . . . . 2 . . . 2 Savage 1 | . . . . . . . . . . . . . . . . . . . . . . 1 . . . . Best Kill Streak 16 | . 4 3 5 4 7 12 3 1 . 4 5 . 3 2 2 16 2 5 4 4 8 10 8 3 2 10 Combat Bots Only 9 | . 4 3 5 4 5 8 3 1 . 4 5 . 3 2 2 6 2 5 4 4 6 9 8 3 1 9 Max Kills in Single Turn 5 | . 1 2 2 3 3 5 2 1 . 4 1 . 1 1 1 4 1 2 2 3 5 2 3 2 1 5 Gunslinging 2 | . . . 1 . 1 . . . . . . . . . . . . . . . 1 1 2 . . 1 Exploded 5 | . . 2 . 3 3 3 2 . . 4 . . . . . 2 . 2 . 3 4 . 3 . . 5 Melee 1 | . . . . . . . . . . 1 . . . . . . . . . . . . . . . . Uniques/NPCs Destroyed 2 | . . . . . . . . . . . . . . . . . . . . . . . 2 . . . A7 (-4/Cetus) Revision 17 (-4/Cetus) Combat | -11 -10 -10 -9 -9 -8 -7 -7 -7 -7 -6 -6 -6 -6 -6 -5 -5 -5 -5 -5 -4 -4 -4 -4 -4 -4 -3 -------- Run | Scr Mat Min Mat Min Mat Fac Low Low Zio Pro Fac Low Low Dat Pro Fac Upp Upp War Pro Fac Ext Cet Arc Hub Res Damage Taken 23265 | . 812 433 914 107 2721 2715 20 91 . 764 1049 . 371 1265 320 1956 189 56 571 . 2263 2119 536 26 579 3388 Core 1766 | . 137 27 153 19 287 271 . . . 75 82 . 35 90 . 158 . . 94 . 101 25 . . 13 199 Absorbed by Shields 658 | . . . . . . . . . . . . . . . . . . . 252 . 163 125 118 . . . Reduced by Siege Mode 721 | . . . . . . . . . . . . . 11 159 16 62 4 . . . 186 115 25 . . 143 Core Remaining (%) 65 | 100 . 34 . 57 47 . . . . 50 . . . . 75 . . . . 74 . . . . 87 . Volleys Fired 1087 | . 91 18 98 15 123 112 4 5 . 17 92 4 22 20 10 85 19 4 35 12 71 70 27 33 16 84 Largest 4 | . 2 2 3 3 3 3 3 3 . 3 3 1 3 3 3 4 4 1 4 4 4 4 4 4 4 4 Hottest 186 | . 40 89 112 69 74 91 86 74 . 80 186 90 146 99 99 184 112 39 136 142 146 146 140 140 140 140 Shots Fired 3006 | . 182 32 293 41 347 306 10 15 . 45 214 4 48 60 30 294 31 4 126 15 224 265 98 71 38 213 Gun 2696 | . 182 28 293 39 340 280 7 15 . 40 39 . 37 60 30 272 16 . 122 13 224 264 96 70 38 191 Cannon 267 | . . . . . . 16 2 . . 2 175 4 11 . . 17 15 . 4 . . 1 . . . 20 Launcher 42 | . . 4 . 2 7 10 1 . . 3 . . . . . 5 . 4 . 2 . . 2 . . 2 Special 1 | . . . . . . . . . . . . . . . . . . . . . . . . 1 . . Kinetic 2805 | . 182 15 277 39 340 296 9 15 . 42 157 . 37 60 30 272 16 . 122 13 224 264 96 70 38 191 Thermal 159 | . . 13 16 . . . . . . . 57 4 11 . . 17 15 . 4 . . 1 . 1 . 20 Explosive 42 | . . 4 . 2 7 10 1 . . 3 . . . . . 5 . 4 . 2 . . 2 . . 2 Electromagnetic . | . . . . . . . . . . . . . . . . . . . . . . . . . . . Robot Hit Streak 47 | . 16 11 15 16 20 29 3 4 . 8 18 . 12 25 10 31 8 7 18 13 36 47 13 13 14 23 Robot Miss Streak 6 | . 4 1 6 3 5 2 1 1 . 2 4 . 1 1 2 4 1 1 3 . 2 4 3 2 1 3 Penetration Max 2 | . . . . . 1 1 . . . . 1 . . 1 1 2 1 . 1 . 2 2 2 1 1 2 Secondary Targets 50 | . 1 2 7 . 3 5 . . . . . . . . 1 4 1 . 3 . 2 7 6 1 . 7 Max Gunslinging Chain 2 | . 1 1 1 . 1 1 . . . . . . . . 1 1 1 . 1 . 1 1 2 1 . 1 Shots Hit Robots 1966 | . 116 24 162 23 233 223 5 21 . 26 129 . 31 53 22 174 14 2 85 4 157 184 71 47 20 140 Core Hits 1030 | . 48 19 70 14 96 143 5 7 . 17 56 . 14 25 10 129 7 7 42 9 92 83 42 20 7 68 Critical Kills 119 | . . . . . 2 4 . . . 2 2 . 3 4 2 11 1 . 10 . 17 21 13 12 2 13 Critical Parts Destroyed 155 | . . . 2 . 1 8 . . . 1 3 . 4 6 5 18 . . 16 . 30 20 15 5 4 17 Critical Strikes 315 | . . 1 5 . 3 14 . . . 3 16 . 7 13 7 29 1 . 29 . 47 46 33 22 7 32 Burn 4 | . . 1 3 . . . . . . . . . . . . . . . . . . . . . . . Meltdown 1 | . . . . . . . . . . . 1 . . . . . . . . . . . . . . . Destroy 297 | . . . 2 . 3 12 . . . 3 4 . 7 13 7 29 1 . 29 . 47 46 33 22 7 32 Blast 13 | . . . . . . 2 . . . . 11 . . . . . . . . . . . . . . . Melee Attacks 30 | . . . . . . . . 17 . 2 . . . 7 . . . . . . . . . . . 4 Impact . | . . . . . . . . . . . . . . . . . . . . . . . . . . . Slashing 30 | . . . . . . . . 17 . 2 . . . 7 . . . . . . . . . . . 4 Piercing . | . . . . . . . . . . . . . . . . . . . . . . . . . . . Sneak Attacks 8 | . . . . . . . . 7 . . . . . 1 . . . . . . . . . . . . Combat Hostiles . | . . . . . . . . . . . . . . . . . . . . . . . . . . . Follow-up Attacks . | . . . . . . . . . . . . . . . . . . . . . . . . . . . Damage Inflicted 49078 | . 1475 589 2666 545 4668 8069 275 1074 . 906 3583 . 550 488 244 5320 254 534 902 480 4791 5106 1752 530 482 3795 Guns 33185 | . 1437 358 2611 322 3529 5339 97 121 . 235 388 . 458 348 244 3034 222 . 902 38 3338 4927 1457 512 467 2801 Cannons 3458 | . . . . . . 218 . . . 14 2940 . 92 . . 162 32 . . . . . . . . . Explosions 10386 | . . 180 . 136 1107 2477 166 . . 625 77 . . . . 2006 . 534 . 442 1400 . 295 . . 941 Melee 1165 | . . . . . . . . 953 . 32 . . . 140 . . . . . . . . . . . 40 Ramming 866 | . 38 51 55 87 32 35 12 . . . 178 . . . . 118 . . . . 53 179 . . 15 13 Kinetic 35142 | . 1437 189 2393 322 3529 5557 97 121 . 249 2500 . 458 348 244 3034 222 . 902 38 3338 4927 1457 512 467 2801 Thermal 3039 | . . 169 218 . . 98 . . . . 905 . 92 . . 180 32 . . . 1327 . . 18 . . Explosive 8034 | . . 180 . 136 1107 2379 166 . . 625 . . . . . 1156 . 534 . 442 73 . 295 . . 941 Electromagnetic 832 | . . . . . . . . . . . . . . . . 832 . . . . . . . . . . Impact . | . . . . . . . . . . . . . . . . . . . . . . . . . . . Slashing 1165 | . . . . . . . . 953 . 32 . . . 140 . . . . . . . . . . . 40 Piercing . | . . . . . . . . . . . . . . . . . . . . . . . . . . . Highest Corruption 50 | . . . 1 1 6 3 4 4 4 . 2 2 2 2 5 4 4 4 4 . 15 47 50 50 12 11 Average Corruption 7 | . . . 1 1 6 1 3 4 4 . 1 2 2 2 4 3 4 4 4 . 14 25 48 29 10 6 Corruption Purged 42 | . . . . . . . . . . . . . . . . . . . . . . . . 42 . . Effects 502 | . . . 9 11 60 13 14 14 2 . 23 1 11 3 11 39 21 8 1 . 41 81 37 62 5 35 Message Errors 130 | . . . 5 7 15 2 5 2 . . 8 . 3 1 6 12 5 2 . . 7 16 8 15 . 11 Matter Fused 97 | . . . . . 14 3 4 2 1 . . . . . 1 11 7 2 1 . 6 19 9 10 1 6 Heat Flow Errors 70 | . . . . . 7 5 2 2 1 . 4 1 4 2 2 5 4 1 . . 3 11 3 8 1 4 Energy Discharges 67 | . . . 2 2 6 1 2 7 . . 7 . 2 . 1 8 2 2 . . 6 5 3 8 1 2 Parts Rejected 4 | . . . . . 2 . . . . . . . . . . . . . . . . . . . 1 1 Data Loss (minor) 60 | . . . 1 2 9 2 1 1 . . 4 . 2 . 1 3 3 1 . . 9 8 3 4 1 5 Data Loss (major) 10 | . . . . . 2 . . . . . . . . . . . . . . . . 3 1 3 . 1 Misfires 13 | . . . . . 1 . . . . . . . . . . . . . . . 2 5 2 2 . 1 Alerts 7 | . . . . . . . . . . . . . . . . . . . . . 1 . 2 3 . 1 Misdirections 3 | . . . . . . . . . . . . . . . . . . . . . 1 1 . 1 . . Weapon Failures 41 | . . . 1 . 4 . . . . . . . . . . . . . . . 6 13 6 8 . 3 Overload Shots 1 | . . . . . . . . . . . . . . . . . . . . . . 1 . . . . Overflow Damage 1274 | . . . . . 68 43 6 584 . . 37 . . . . 14 . 38 . 48 436 . . . . . Projectiles 37 | . . . . . . 8 . . . . 29 . . . . . . . . . . . . . . . Explosions 627 | . . . . . 68 35 6 . . . . . . . . . . 38 . 48 432 . . . . . Melee 610 | . . . . . . . . 584 . . 8 . . . . 14 . . . . 4 . . . . . Knockbacks 43 | . 1 . . . . 2 . . . . 31 . . . . 3 . . . . 2 3 . . 1 . Impact 12 | . 1 . . . . . . . . . 2 . . . . 3 . . . . 2 3 . . 1 . Kinetic 27 | . . . . . . 2 . . . . 25 . . . . . . . . . . . . . . . Secondary 4 | . . . . . . . . . . . 4 . . . . . . . . . . . . . . . Self-Inflicted Damage 342 | . . 40 . 19 36 66 5 . . . . . . . . . . . . . 29 . . . . 147 Shots 10 | . . 1 . 1 1 4 . . . . . . . . . . . . . . 1 . . . . 2 Rammed 82 | . 8 6 9 11 7 6 2 . . . 14 . . . . 6 . . . . 4 7 . . 1 1 Targets Rammed 87 | . 8 8 9 13 7 6 2 . . . 14 . . . . 6 . . . . 4 8 . . 1 1 Kicked . | . . . . . . . . . . . . . . . . . . . . . . . . . . . Crushed 5 | . . 2 . 2 . . . . . . . . . . . . . . . . . 1 . . . . Highest Temperature 274 | . 6 159 102 . 236 193 172 226 115 . 240 222 274 209 240 227 227 163 . . 221 235 180 224 105 222 Average Temperature 60 | . 6 50 28 . 71 71 92 109 64 . 47 108 89 76 104 49 103 82 . . 42 102 83 86 74 25 Received Heat Transfer 3829 | . 429 156 201 . 603 915 . . . . 354 . 78 174 . 252 . . 26 . 294 136 . . . 211 Siege Activations 28 | . . . . . . . . . . . . . 1 1 1 3 1 . . . 8 6 1 . 1 5 Total Turns 557 | . . . . . . . . . . . . . 12 62 12 112 14 . . . 136 94 22 . 7 86 Longest Duration 72 | . . . . . . . . . . . . . 12 62 12 72 14 . . . 31 52 22 . 7 30 Robots Corrupted 2 | . . . . . . . . . . . . . . . . 2 . . . . . . . . . . Combat Hostiles 2 | . . . . . . . . . . . . . . . . 2 . . . . . . . . . . Parts Fried 6 | . . . . . . . . . . . . . . . . 2 . . . . 3 . 1 . . . Impact Corruptions 4 | . . . . . . . . . . . 1 . . . . 2 . . . . 1 . . . . . Robots Melted 1 | . . . . . . . . . . . 1 . . . . . . . . . . . . . . . Combat Hostiles . | . . . . . . . . . . . . . . . . . . . . . . . . . . . Parts Melted 10 | . . . 2 . . . . . . 5 2 . . . . . . . 1 . . . . . . . Heat Transferred 4019 | . . 555 777 . . 50 . . . . 1250 . 150 . . 300 50 . . . 850 . . 37 . . Parts Sabotaged 4 | . . . . . . . . . . . . . . . . . . . . . . . . . . 4 Parts Stolen . | . . . . . . . . . . . . . . . . . . . . . . . . . . . Parts Stripped . | . . . . . . . . . . . . . . . . . . . . . . . . . . . Power Chain Reactions 2 | . . . . . . . . . . . . . . . . 2 . . . . . . . . . . Missiles Intercepted . | . . . . . . . . . . . . . . . . . . . . . . . . . . . Alert | -11 -10 -10 -9 -9 -8 -7 -7 -7 -7 -6 -6 -6 -6 -6 -5 -5 -5 -5 -5 -4 -4 -4 -4 -4 -4 -3 ------- Run | Scr Mat Min Mat Min Mat Fac Low Low Zio Pro Fac Low Low Dat Pro Fac Upp Upp War Pro Fac Ext Cet Arc Hub Res Peak Influence 2054 | . 236 158 512 193 598 2054 . . . . 279 . . . . 532 . . . . 1005 958 1194 661 179 1468 Initial 536 | . . 53 5 193 5 271 . . . . . . . . . . . . . . 58 347 536 399 108 93 Average 303 | . 90 55 219 62 220 860 . . . . 109 . . . . 239 . . . . 486 561 856 459 122 449 Maximum Alert Level 5 | . 1 . 2 . 2 5 . . . . 1 . . . . 2 . . . . 3 3 4 2 . 4 Low Security (%) 50 | 100 96 100 40 100 49 17 . . . . 84 . . . . 40 . . . . 3 . . . 100 32 Level 1 20 | . 3 . 46 . 31 16 . . . . 15 . . . . 41 . . . . 37 12 . 32 . . Level 2 18 | . . . 13 . 18 22 . . . . . . . . . 18 . . . . 30 65 23 67 . 46 Level 3 6 | . . . . . . 11 . . . . . . . . . . . . . . 27 22 71 . . 20 Level 4 1 | . . . . . . 11 . . . . . . . . . . . . . . . . 4 . . . Level 5 1 | . . . . . . 19 . . . . . . . . . . . . . . . . . . . . High Security . | . . . . . . . . . . . . . . . . . . . . . . . . . . . Max Security . | . . . . . . . . . . . . . . . . . . . . . . . . . . . Squads Dispatched 90 | . 6 . 4 . 5 19 . . . . 10 . . . . 15 . . . . 7 6 . . 3 15 Investigation 14 | . 3 . 3 . 1 1 . . . . 2 . . . . 2 . . . . 2 . . . . . Extermination 14 | . . . . . . 2 . . . . 4 . . . . 4 . . . . 2 . . . . 2 Reinforcement 42 | . 3 . 1 . 4 3 . . . . 3 . . . . 9 . . . . 3 5 . . 2 9 Assault 11 | . . . . . . 6 . . . . 1 . . . . . . . . . . 1 . . . 3 Garrison 9 | . . . . . . 7 . . . . . . . . . . . . . . . . . . 1 1 Intercept . | . . . . . . . . . . . . . . . . . . . . . . . . . . . Construction Impeded 7 | . . . . . 1 1 . . . . . . . . . 2 . . . . 2 1 . . . . Haulers Reinforced 6 | . . . . . . . . . . . 1 . . . . 2 . . . . 1 . . . 1 1 Active Scanning Responses . | . . . . . . . . . . . . . . . . . . . . . . . . . . . Cargo Convoy Interrupts 2 | . . . . . . 1 . . . . . . . . . . . . . . . . . . . 1 Stealth | -11 -10 -10 -9 -9 -8 -7 -7 -7 -7 -6 -6 -6 -6 -6 -5 -5 -5 -5 -5 -4 -4 -4 -4 -4 -4 -3 --------- Run | Scr Mat Min Mat Min Mat Fac Low Low Zio Pro Fac Low Low Dat Pro Fac Upp Upp War Pro Fac Ext Cet Arc Hub Res Distress Signals 29 | . 1 . 5 1 3 3 . . . . 2 . . . . 3 . . . . 3 1 2 . 3 2 Communications Jammed 65 | . . . . . . . . . . . . . . . . . . . . . . . . . . 65 Distress Signals 62 | . . . . . . . . . . . . . . . . . . . . . . . . . . 62 Times Spotted 542 | . 39 9 43 12 50 73 2 1 . 6 30 . 4 4 3 36 2 3 40 1 37 46 25 18 12 46 Peak Tracking Total 11 | . 6 3 5 4 6 8 1 1 . 3 5 . 3 3 2 5 2 3 10 3 6 6 11 1 11 11 Tactical Retreats 31 | . 2 . 1 5 2 4 . . . . 3 . . . . 2 . . 2 . 2 5 . . . 3 Traps | -11 -10 -10 -9 -9 -8 -7 -7 -7 -7 -6 -6 -6 -6 -6 -5 -5 -5 -5 -5 -4 -4 -4 -4 -4 -4 -3 ------- Run | Scr Mat Min Mat Min Mat Fac Low Low Zio Pro Fac Low Low Dat Pro Fac Upp Upp War Pro Fac Ext Cet Arc Hub Res Traps Triggered 18 | . 2 . 2 . 3 2 . . . . 1 . 1 . . 1 . . . . . 1 . . 2 3 Indirectly . | . . . . . . . . . . . . . . . . . . . . . . . . . . . Trap Hack Attempts . | . . . . . . . . . . . . . . . . . . . . . . . . . . . Triggered . | . . . . . . . . . . . . . . . . . . . . . . . . . . . Disarmed . | . . . . . . . . . . . . . . . . . . . . . . . . . . . Reprogrammed . | . . . . . . . . . . . . . . . . . . . . . . . . . . . Reused . | . . . . . . . . . . . . . . . . . . . . . . . . . . . Traps Extracted . | . . . . . . . . . . . . . . . . . . . . . . . . . . . Installed . | . . . . . . . . . . . . . . . . . . . . . . . . . . . Triggered 19 | . . . . . . 2 1 . . . . . . . . . . . 16 . . . . . . . Machines | -11 -10 -10 -9 -9 -8 -7 -7 -7 -7 -6 -6 -6 -6 -6 -5 -5 -5 -5 -5 -4 -4 -4 -4 -4 -4 -3 ---------- Run | Scr Mat Min Mat Min Mat Fac Low Low Zio Pro Fac Low Low Dat Pro Fac Upp Upp War Pro Fac Ext Cet Arc Hub Res Machines Disabled 60 | . . 2 4 . 3 6 . . . . 5 . . 1 . 9 . . . . 17 2 2 4 3 2 Max in Single Turn 5 | . . 1 1 . 1 1 . . . . 2 . . 1 . 3 . . . . 5 1 2 1 1 1 Garrison Access 6 | . . . . . . . . . . . 2 . . . . 1 . . . . 1 . . . . 2 Machines Sabotaged . | . . . . . . . . . . . . . . . . . . . . . . . . . . . Garrisons Compromised 1 | . . . . . . 1 . . . . . . . . . . . . . . . . . . . . Overloaded Fab Kills . | . . . . . . . . . . . . . . . . . . . . . . . . . . . Fab Network Shutdowns 3 | . . . . . . 1 . . . . . . . . . 1 . . . . . . . . . 1 Hacking | -11 -10 -10 -9 -9 -8 -7 -7 -7 -7 -6 -6 -6 -6 -6 -5 -5 -5 -5 -5 -4 -4 -4 -4 -4 -4 -3 --------- Run | Scr Mat Min Mat Min Mat Fac Low Low Zio Pro Fac Low Low Dat Pro Fac Upp Upp War Pro Fac Ext Cet Arc Hub Res Machines Accessed 89 | . 7 . 13 1 10 4 2 . . . 14 . 1 4 . 11 . . . . 9 8 . . . 5 Terminals 57 | . 4 . 11 . 8 3 . . . . 8 . . . . 7 . . . . 5 8 . . . 3 Fabricators 8 | . . . . . . 1 . . . . 3 . . . . 2 . . . . 1 . . . . 1 Repair Stations 5 | . 1 . 1 . 1 . . . . . 1 . . . . . . . . . 1 . . . . . Recycling Units 3 | . 2 . 1 . . . . . . . . . . . . . . . . . . . . . . . Scanalyzers 4 | . . . . . 1 . . . . . 1 . . . . 1 . . . . 1 . . . . . Garrison Access 4 | . . . . . . . . . . . 1 . . . . 1 . . . . 1 . . . . 1 Total Hacks 295 | . 18 . 33 1 36 12 4 . . . 49 . 1 28 . 43 . . . . 26 26 . . . 18 Successful 210 | . 10 . 23 1 25 5 4 . . . 36 . 1 28 . 27 . . . . 18 18 . . . 14 Failed 85 | . 8 . 10 . 11 7 . . . . 13 . . . . 16 . . . . 8 8 . . . 4 Catastrophic 7 | . 1 . 2 . . 1 . . . . . . . . . 1 . . . . . 1 . . . 1 Database Lockouts . | . . . . . . . . . . . . . . . . . . . . . . . . . . . Manual 154 | . 13 . 25 . 23 9 . . . . 26 . . . . 27 . . 1 . 7 15 1 . . 7 Terminals 176 | . 11 . 30 . 28 9 . . . . 22 . . . . 29 . . . . 14 26 . . . 7 Fabricators 43 | . . . . . . 3 . . . . 21 . . . . 7 . . . . 3 . . . . 9 Repair Stations 19 | . 5 . 2 . 6 . . . . . 3 . . . . . . . . . 3 . . . . . Recycling Units 3 | . 2 . 1 . . . . . . . . . . . . . . . . . . . . . . . Scanalyzers 15 | . . . . . 2 . . . . . 2 . . . . 6 . . . . 5 . . . . . Garrison Access 5 | . . . . . . . . . . . 1 . . . . 1 . . . . 1 . . . . 2 Terminal Hacks 98 | . 1 . 11 1 11 1 4 . . . 7 . 1 28 . 10 . . . . 8 12 . . . 3 Record 14 | . . . . . . . 3 . . . . . . 11 . . . . . . . . . . . . Part Schematic 16 | . . . . . 2 . . . . . 2 . . 9 . 2 . . . . 1 . . . . . Robot Schematic 5 | . . . . . . . . . . . . . . 5 . . . . . . . . . . . . Robot Analysis 1 | . . . . . . . . . . . . . . . . . . . . . . . . . . 1 Prototype ID Bank 4 | . . . . . . . . . . . . . . 3 . . . . . . 1 . . . . . Open Door 7 | . . . . 1 . . 1 . . . . . 1 . . . . . . . 1 3 . . . . Branch Access Points 6 | . . . 1 . 2 . . . . . 1 . . . . 1 . . . . 1 . . . . . Terminal Index 6 | . 1 . . . 1 1 . . . . 1 . . . . . . . . . 1 1 . . . . Fabricator Index 3 | . . . . . . . . . . . 1 . . . . 1 . . . . . . . . . 1 Scanalyzer Index 1 | . . . . . 1 . . . . . . . . . . . . . . . . . . . . . Alert Level 13 | . . . 3 . 3 . . . . . 1 . . . . 2 . . . . 1 3 . . . . Unreport Threat 6 | . . . . . . . . . . . . . . . . 2 . . . . 2 1 . . . 1 Locate Traps 2 | . . . 1 . . . . . . . . . . . . . . . . . . 1 . . . . Recall Investigation 2 | . . . . . . . . . . . . . . . . 1 . . . . . 1 . . . . Recall Reinforcements 1 | . . . . . . . . . . . . . . . . . . . . . . 1 . . . . Hauler Manifests 2 | . . . 1 . . . . . . . 1 . . . . . . . . . . . . . . . Zone Layout 9 | . . . 5 . 2 . . . . . . . . . . 1 . . . . . 1 . . . . Fabricator Hacks 26 | . . . . . . 2 . . . . 11 . . . . 5 . . . . 2 . . . . 6 Load Schematic 12 | . . . . . . 1 . . . . 5 . . . . 2 . . . . 1 . . . . 3 Build 14 | . . . . . . 1 . . . . 6 . . . . 3 . . . . 1 . . . . 3 Repair Station Hacks 16 | . 4 . 2 . 6 . . . . . 3 . . . . . . . . . 1 . . . . . Scan Component 9 | . 2 . 1 . 3 . . . . . 2 . . . . . . . . . 1 . . . . . Repair 7 | . 2 . 1 . 3 . . . . . 1 . . . . . . . . . . . . . . . Recycling Unit Hacks . | . . . . . . . . . . . . . . . . . . . . . . . . . . . Scanalyzer 14 | . . . . . 2 . . . . . 2 . . . . 6 . . . . 4 . . . . . Insert Component 7 | . . . . . 1 . . . . . 1 . . . . 3 . . . . 2 . . . . . Analyze 7 | . . . . . 1 . . . . . 1 . . . . 3 . . . . 2 . . . . . Garrison Access Hacks 4 | . . . . . . . . . . . 1 . . . . 1 . . . . 1 . . . . 1 Seal Access 4 | . . . . . . . . . . . 1 . . . . 1 . . . . 1 . . . . 1 Unauthorized Hacks 52 | . 5 . 10 . 6 2 . . . . 12 . . . . 5 . . . . 2 6 . . . 4 Terminals 42 | . 3 . 9 . 6 2 . . . . 8 . . . . 5 . . . . 2 6 . . . 1 Track 1 | . . . . . . . . . . . . . . . . . . . . . . 1 . . . . Assimilate 8 | . . . . . . 1 . . . . 3 . . . . 3 . . . . . . . . . 1 Botnet 31 | . 3 . 9 . 6 1 . . . . 4 . . . . 2 . . . . 2 4 . . . . Disrupt 2 | . . . . . . . . . . . 1 . . . . . . . . . . 1 . . . . Fabricators 7 | . . . . . . . . . . . 4 . . . . . . . . . . . . . . 3 Report 1 | . . . . . . . . . . . 1 . . . . . . . . . . . . . . . Prioritize 2 | . . . . . . . . . . . 1 . . . . . . . . . . . . . . 1 Siphon 2 | . . . . . . . . . . . 1 . . . . . . . . . . . . . . 1 Haulers 2 | . . . . . . . . . . . 1 . . . . . . . . . . . . . . 1 Repair Stations . | . . . . . . . . . . . . . . . . . . . . . . . . . . . Recycling Units 3 | . 2 . 1 . . . . . . . . . . . . . . . . . . . . . . . Tunnel 3 | . 2 . 1 . . . . . . . . . . . . . . . . . . . . . . . Scanalyzers . | . . . . . . . . . . . . . . . . . . . . . . . . . . . Garrison Access . | . . . . . . . . . . . . . . . . . . . . . . . . . . . Data Cores Recovered 1 | . . . . . 1 . . . . . . . . . . . . . . . . . . . . . Used . | . . . . . . . . . . . . . . . . . . . . . . . . . . . Hacking Detections 71 | . 5 . 12 . 10 4 . . . . 12 . . . . 9 . . . . 7 7 1 . . 4 Full Trace Events 7 | . 1 . 1 . . . . . . . 2 . . . . 2 . . . . 1 . . . . . Feedback Events 2 | . . . . . . . . . . . 1 . . . . 1 . . . . . . . . . . Corruption 2 | . . . . . . . . . . . 1 . . . . 1 . . . . . . . . . . Feedback Blocked . | . . . . . . . . . . . . . . . . . . . . . . . . . . . Robot Schematics Acquired 5 | . . . . . . . . . . . . . . 5 . . . . . . . . . . . . Robots Built . | . . . . . . . . . . . . . . . . . . . . . . . . . . . Matter . | . . . . . . . . . . . . . . . . . . . . . . . . . . . Time . | . . . . . . . . . . . . . . . . . . . . . . . . . . . Total Robot Build Rating . | . . . . . . . . . . . . . . . . . . . . . . . . . . . Part Schematics Acquired 21 | . . . . . 3 . . . . . 3 . . 9 . 4 . . . . 2 . . . . . Parts Built 23 | . . . . . . 1 . . . . 11 . . . . 5 . . . . 1 . . . . 5 Matter 2617 | . . . . . . 102 . . . . 969 . . . . 658 . . . . 285 . . . . 603 Time 872 | . . . . . . 25 . . . . 373 . . . . 270 . . . . 76 . . . . 128 Total Part Build Rating 121 | . . . . . . 1 . . . . 55 . . . . 31 . . . . 5 . . . . 29 Parts Repaired 7 | . 2 . 1 . 3 . . . . . 1 . . . . . . . . . . . . . . . Time 212 | . 52 . 32 . 84 . . . . . 44 . . . . . . . . . . . . . . . Parts Recycled . | . . . . . . . . . . . . . . . . . . . . . . . . . . . Recycled Matter . | . . . . . . . . . . . . . . . . . . . . . . . . . . . Retrieved Matter . | . . . . . . . . . . . . . . . . . . . . . . . . . . . Retrieved Components . | . . . . . . . . . . . . . . . . . . . . . . . . . . . Parts Scanalyzed 6 | . . . . . 1 . . . . . 1 . . . . 2 . . . . 2 . . . . . Part Schematics Acquired 5 | . . . . . 1 . . . . . 1 . . . . 2 . . . . 1 . . . . . Parts Damaged . | . . . . . . . . . . . . . . . . . . . . . . . . . . . Bothacking | -11 -10 -10 -9 -9 -8 -7 -7 -7 -7 -6 -6 -6 -6 -6 -5 -5 -5 -5 -5 -4 -4 -4 -4 -4 -4 -3 ------------ Run | Scr Mat Min Mat Min Mat Fac Low Low Zio Pro Fac Low Low Dat Pro Fac Upp Upp War Pro Fac Ext Cet Arc Hub Res Used RIF Installer . | . . . . . . . . . . . . . . . . . . . . . . . . . . . Robots Hacked . | . . . . . . . . . . . . . . . . . . . . . . . . . . . Non-combat . | . . . . . . . . . . . . . . . . . . . . . . . . . . . Combat . | . . . . . . . . . . . . . . . . . . . . . . . . . . . Robot Hacks Applied . | . . . . . . . . . . . . . . . . . . . . . . . . . . . Relay Couplers Released 1 | . . . . . . . . . . . 1 . . . . . . . . . . . . . . . Machine Destruction 1 | . . . . . . . . . . . 1 . . . . . . . . . . . . . . . Robots Rewired 8 | . . . . . . . . . . . . . . . . . . . 5 . . 3 . . . . Allies Hacked 1 | . . . . . . . . . . . . . . . . . . . . . . . . . . 1 Hacks Repelled . | . . . . . . . . . . . . . . . . . . . . . . . . . . . Allies | -11 -10 -10 -9 -9 -8 -7 -7 -7 -7 -6 -6 -6 -6 -6 -5 -5 -5 -5 -5 -4 -4 -4 -4 -4 -4 -3 -------- Run | Scr Mat Min Mat Min Mat Fac Low Low Zio Pro Fac Low Low Dat Pro Fac Upp Upp War Pro Fac Ext Cet Arc Hub Res Total Allies 52 | . . . . . . 19 . . 2 . 3 . . . . 5 . . 5 . . 10 5 . . 3 Largest Group 17 | . . . . . . 17 . . 2 2 2 . . . . 5 . . 5 2 2 5 5 2 2 3 Highest-Rated Group 718 | . . . . . . 718 . . 51 51 36 . . . . 129 . . 266 130 130 340 475 190 190 138 Highest-Rated Ally 156 | . . . . . . 74 . . 31 31 26 . . . . 31 . . 65 65 65 156 150 95 95 46 Total Orders 6 | . . . . . . . . . . . . . . . . 1 . . 3 . . . . 2 . . STAY 4 | . . . . . . . . . . . . . . . . 1 . . 2 . . . . 1 . . FOLLOW 2 | . . . . . . . . . . . . . . . . . . . 1 . . . . 1 . . Ally Attacks 245 | . . . . . . 35 . . . 16 . . . . . 11 . . 12 . . 95 47 12 3 14 Total Damage 8187 | . . . . . . 1352 . . . 308 . . . . . 172 . . 462 . . 3832 1341 379 38 303 Kills 40 | . . . . . . 12 . . . . . . . . . . . . 5 . . 17 4 1 . 1 Allies Corrupted . | . . . . . . . . . . . . . . . . . . . . . . . . . . . Allies Melted . | . . . . . . . . . . . . . . . . . . . . . . . . . . . Intel | -11 -10 -10 -9 -9 -8 -7 -7 -7 -7 -6 -6 -6 -6 -6 -5 -5 -5 -5 -5 -4 -4 -4 -4 -4 -4 -3 ------- Run | Scr Mat Min Mat Min Mat Fac Low Low Zio Pro Fac Low Low Dat Pro Fac Upp Upp War Pro Fac Ext Cet Arc Hub Res Robot Analysis Total 1 | . . . . . . . . . . . . . . . . . . . . . . . . . . 1 Derelict Logs Recovered 12 | . . 2 . 1 . . 1 1 1 1 . . 1 . 2 . 1 1 . . . . . . . . Drone Launches . | . . . . . . . . . . . . . . . . . . . . . . . . . . . Drone Recoveries . | . . . . . . . . . . . . . . . . . . . . . . . . . . . Exploration | -11 -10 -10 -9 -9 -8 -7 -7 -7 -7 -6 -6 -6 -6 -6 -5 -5 -5 -5 -5 -4 -4 -4 -4 -4 -4 -3 ------------- Run | Scr Mat Min Mat Min Mat Fac Low Low Zio Pro Fac Low Low Dat Pro Fac Upp Upp War Pro Fac Ext Cet Arc Hub Res Turns Passed 36110 | 66 2452 1610 3345 1800 2623 2467 592 750 1549 1207 3473 257 1027 360 537 2607 834 322 1404 392 1446 1530 546 1162 203 1549 Spaces Moved 14890 | 47 813 582 1091 658 799 713 381 454 1064 506 1573 149 523 149 306 1150 479 193 542 221 579 705 214 241 81 677 Core 22 | 22 . . . . . . . . . . . . . . . . . . . . . . . . . . Treads 12327 | 25 813 582 1091 658 799 573 . . . 4 1573 149 523 149 306 1150 479 193 542 221 579 705 214 241 81 677 Legs 19 | . . . . . . . . . . 19 . . . . . . . . . . . . . . . . Wheels 2522 | . . . . . . 140 381 454 1064 483 . . . . . . . . . . . . . . . . Hover . | . . . . . . . . . . . . . . . . . . . . . . . . . . . Flight . | . . . . . . . . . . . . . . . . . . . . . . . . . . . Fastest Speed 50 | 50 160 260 260 260 155 145 145 145 145 145 160 160 160 160 160 160 160 160 160 160 160 160 160 160 160 152 Average Speed 189 | 120 244 260 260 260 247 230 145 145 145 209 171 160 160 160 160 160 160 160 160 160 160 160 160 160 160 163 Slowest Speed 660 | 160 260 360 260 260 263 360 145 145 145 660 260 160 160 160 160 160 160 160 160 160 160 260 160 160 160 245 Overloaded Moves . | . . . . . . . . . . . . . . . . . . . . . . . . . . . Propulsion Burnouts . | . . . . . . . . . . . . . . . . . . . . . . . . . . . Robots Hopped . | . . . . . . . . . . . . . . . . . . . . . . . . . . . Cave-ins Triggered 1 | . . . . . . . . . . . . . . . . . . . . . 1 . . . . . Exploration Rate (%) 55 | 4 97 96 95 97 61 12 54 61 84 60 36 34 61 80 46 31 59 47 69 40 17 82 66 83 16 22 Regions Visited 26 Branch Regions 18 Pre-discovered Areas 10 | . 2 . 1 1 . . 1 1 1 1 . . 1 1 . . . . . . . . . . . . Known Exits Taken 20 | . . . 1 . . 1 1 1 1 1 1 1 1 1 1 1 1 1 . 1 1 1 1 1 1 . Unknown Exits Taken 6 | 1 1 1 . 1 1 . . . . . . . . . . . . . 1 . . . . . . . Scrap Searched 28 | . . 2 . 2 . . 3 1 2 1 . . 10 . 3 . 1 1 . 2 . . . . . . Spaces Dug 227 | . . 16 . 11 45 13 . 4 . 12 17 4 6 . . 7 11 . 3 15 23 3 . . 3 34 Terrain Destroyed 877 | . . 32 6 19 85 135 15 4 . 27 70 4 8 . . 35 14 43 10 42 186 40 7 6 8 81 Melee 6 | . . . . . . . . 4 . . . . . . . . . . . . . . . . . 2 Projectile 320 | . . . 6 . 4 7 . . . . 54 4 8 . . 17 14 . 9 19 85 37 5 6 8 37 AOE 537 | . . 32 . 19 81 127 15 . . 27 16 . . . . 15 . 43 . 23 99 . . . . 40 Terrain Rammed . | . . . . . . . . . . . . . . . . . . . . . . . . . . . Walls Destroyed . | . . . . . . . . . . . . . . . . . . . . . . . . . . . Machines Disabled . | . . . . . . . . . . . . . . . . . . . . . . . . . . . Actions | -11 -10 -10 -9 -9 -8 -7 -7 -7 -7 -6 -6 -6 -6 -6 -5 -5 -5 -5 -5 -4 -4 -4 -4 -4 -4 -3 --------- Run | Scr Mat Min Mat Min Mat Fac Low Low Zio Pro Fac Low Low Dat Pro Fac Upp Upp War Pro Fac Ext Cet Arc Hub Res Total 20510 | 54 1082 628 1400 700 1188 1288 410 505 1070 622 2166 163 673 215 330 1713 520 201 995 244 961 946 375 967 124 970 Wait 3574 | . 143 1 116 9 168 399 13 25 4 82 361 10 110 20 9 405 17 3 366 9 265 114 93 673 17 142 Move 14864 | 46 812 581 1090 657 798 712 380 453 1063 505 1572 148 522 148 305 1149 478 192 541 220 577 704 213 240 81 677 Hop . | . . . . . . . . . . . . . . . . . . . . . . . . . . . Pick Up 215 | 2 15 6 28 2 23 16 1 1 2 4 34 . 1 5 2 17 1 . 6 . 7 16 9 3 2 12 Fast Attach 90 | 6 4 2 4 . 9 1 1 . . 1 17 . 4 1 . 3 . . 6 . 4 5 6 9 1 6 Attach 98 | . 2 2 5 . 13 14 1 2 . 6 5 . . 2 2 7 1 . 3 . 10 8 . . 3 12 Detach 6 | . . 1 1 . 2 . 1 . . . 1 . . . . . . . . . . . . . . . Swap 234 | . 4 8 13 2 20 18 6 2 1 5 27 1 5 6 2 29 4 2 11 3 16 9 8 4 4 24 Drop 197 | . 3 1 36 2 25 10 1 . . . 43 . 5 6 . 12 . . 11 . 6 4 19 5 . 8 Fire 1087 | . 91 18 98 15 123 112 4 5 . 17 92 4 22 20 10 85 19 4 35 12 71 70 27 33 16 84 Melee 30 | . . . . . . . . 17 . 2 . . . 7 . . . . . . . . . . . 4 Ram 2 | . . . . . . . 2 . . . . . . . . . . . . . . . . . . . Kick . | . . . . . . . . . . . . . . . . . . . . . . . . . . . Crush 84 | . 8 8 9 13 7 6 . . . . 14 . . . . 6 . . . . 4 8 . . . 1 Escape Stasis 1 | . . . . . . . . . . . . . . . . . . . . . 1 . . . . . Rewire 28 | . . . . . . . . . . . . . 4 . . . . . 16 . . 8 . . . . Trap . | . . . . . . . . . . . . . . . . . . . . . . . . . . . Miscellaneous . | . . . . . . . . . . . . . . . . . . . . . . . . . . . Route ------- -11/Scrapyard -10/Materials (discovered 5 exits: *Mat x3 / [*Min x2]) -10/Mines (discovered 2 exits: *Mat x2) -9/Materials (discovered 4 exits: *Mat x3 / *Min) -9/Mines (discovered 3 exits: *Mat x2 / *Zio) -8/Materials (discovered 2 exits: *Fac x2) -7/Factory (discovered 2 exits: *Sto / *Low) -7/Lower Caves -7/Lower Caves -7/Zion -6/Proximity Caves -6/Factory (discovered 3 exits: *Fac / *Low x2) -6/Lower Caves (discovered 2 exits: *Low / *Dat) -6/Lower Caves (discovered 2 exits: *Fac / *Dat) -6/Data Miner -5/Proximity Caves -5/Factory (discovered 5 exits: *Fac x3 / *Upp x2) -5/Upper Caves -5/Upper Caves (discovered 2 exits: *Fac / *War) -5/Warlord -4/Proximity Caves -4/Factory (discovered 6 exits: Res / Upp x2 / *Ext x2 / Arm) -4/Extension (discovered 2 exits: *Res / *Cet) -4/Cetus (discovered 2 exits: *Res / *Arc) -4/Archives (discovered 3 exits: *Res / *Hub x2) -4/Hub_04(d) -3/Research History --------- Turn | Location | Event 16 | -11/Scrapyard | Discovered new exit (range 16) 67 | -11/Scrapyard | Entered Materials 304 | -10/Materials | Build established: Mutant 787 | -10/Materials | Repaired Assault Rifle 815 | -10/Materials | Repaired Assault Rifle 923 | -10/Materials | Discovered new exit (range 7) 1206 | -10/Materials | Discovered new exit (range 13) 1501 | -10/Materials | Discovered new exit (range 12) 1507 | -10/Materials | Discovered new exit (range 16) 1574 | -10/Materials | Core integrity fell below 50% 2151 | -10/Materials | Discovered new exit (range 16) 2519 | -10/Materials | Entered Mines 2583 | -10/Mines | Lost 3 parts (2n1w) 2738 | -10/Mines | Learned Materials machine intel 2866 | -10/Mines | Build established: Scavenger-Mutant 2946 | -10/Mines | A weapon hastily lodged in a ceiling crevice suddenly fell to the ground 3028 | -10/Mines | Found a hidden stash of uninstalled traps 3062 | -10/Mines | Learned Materials emergency access door positions 3416 | -10/Mines | Discovered new exit (range 12) 3600 | -10/Mines | Received a Rocket Launcher from a helpful Derelict 4027 | -10/Mines | Discovered new exit (range 4) 4129 | -10/Mines | Entered Materials 4129 | -9/Materials | Evolved 2 slots: Utility x1, Weapon x1 4131 | -9/Materials | Loaded intel: 61 machine locations 4418 | -9/Materials | Build established: Scavenger-Tank 4565 | -9/Materials | Discovered new exit (range 13) 5293 | -9/Materials | Discovered new exit (range 15) 5676 | -9/Materials | Identified exit to Mines 6308 | -9/Materials | Repaired Autogun 6482 | -9/Materials | Discovered new exit (range 16) 7118 | -9/Materials | Discovered new exit (range 15) 7474 | -9/Materials | Entered Mines 7498 | -9/Mines | Met a Derelict bent on vengeance 7533 | -9/Mines | A Derelict revealed a hidden shortcut to a safe place 7574 | -9/Mines | Assembled infested the area 7579 | -9/Mines | Assisted by a Guerilla fighting off Assembled 7970 | -9/Mines | Discovered new exit (range 7) 8141 | -9/Mines | Discovered new exit (range 11) 8323 | -9/Mines | Learned location of Zion (-7) 8330 | -9/Mines | Met a Derelict who couldn't figure out how to use a Trap Extractor 9274 | -9/Mines | Entered Materials 9274 | -8/Materials | Evolved 2 slots: Propulsion x1, Utility x1 9930 | -8/Materials | Build established: Tank 10094 | -8/Materials | Discovered new exit (range 15) 10669 | -8/Materials | Repaired Hvy. Assault Rifle 10696 | -8/Materials | Repaired Lgt. Treads 10724 | -8/Materials | Repaired Lgt. Treads 11221 | -8/Materials | Discovered new exit (range 16) 11468 | -8/Materials | Core integrity fell below 50% 11897 | -8/Materials | Entered Factory 11897 | -7/Factory | Evolved 2 slots: Utility x2 12215 | -7/Factory | Discovered new exit (range 8) 12250 | -7/Factory | Identified exit to Lower Caves 12458 | -7/Factory | Build established: Scavenger-Skirmisher 12730 | -7/Factory | Cargo convoy interrupted 13181 | -7/Factory | Fabricated Huge Storage Unit (x1) 13294 | -7/Factory | Local fabrication network quarantined 13330 | -7/Factory | Lost 3 parts (1p1n1w) 13497 | -7/Factory | First assault squad dispatched 13583 | -7/Factory | Garrison activated, responded to threat 13644 | -7/Factory | Build established: Scavenger-Gunner 13736 | -7/Factory | Garrison activated, responded to threat 13852 | -7/Factory | Destroyed 8 combat bots 13875 | -7/Factory | Discovered new exit (range 12) 13904 | -7/Factory | Identified exit to Storage 14042 | -7/Factory | Lost 4 parts (1n3w) 14139 | -7/Factory | Garrison activated, responded to threat 14364 | -7/Factory | Entered Lower Caves 14671 | -7/Lower Caves | Learned Factory security intel 14689 | -7/Lower Caves | Build established: Scavenger-Skirmisher 14890 | -7/Lower Caves | Discovered new exit (range 8) 14955 | -7/Lower Caves | Identified exit to Lower Caves 14956 | -7/Lower Caves | Entered another Lower Caves area 15445 | -7/Lower Caves | Build established: Scavenger-Mutant 15520 | -7/Lower Caves | Encountered a Warlord checkpoint 15676 | -7/Lower Caves | Discovered new exit (range 14) 15693 | -7/Lower Caves | Identified exit to Zion 15706 | -7/Lower Caves | Entered Zion 15764 | -7/Zion | System corruption cleaned by Quarantine Array 15901 | -7/Zion | Discovered new exit (range 15) 16170 | -7/Zion | Learned Factory emergency access door positions 16197 | -7/Zion | Learned location of Recycling (-7) 16552 | -7/Zion | Given the Hacking Drone Bay 16552 | -7/Zion | Found Prototype Device 17044 | -7/Zion | Gained Derelict followers 17247 | -7/Zion | Identified exit to Proximity Caves 17255 | -7/Zion | Entered Proximity Caves 17255 | -6/Proximity Caves | Accompanied by 2 allies 17296 | -6/Proximity Caves | Lost 3 parts (2n1w) 17410 | -6/Proximity Caves | Spotted B-75 Beast 17648 | -6/Proximity Caves | Build established: Scavenger-Skirmisher 17823 | -6/Proximity Caves | Received a Behemoth hack from an annoying Tinkerer 18377 | -6/Proximity Caves | Lost 5 parts (1p2n1u1w) 18420 | -6/Proximity Caves | Discovered new exit (range 7) 18450 | -6/Proximity Caves | Identified exit to Factory 18462 | -6/Proximity Caves | Entered Factory 18462 | -6/Factory | Evolved 2 slots: Propulsion x1, Utility x1 18463 | -6/Factory | Identified exit to Lower Caves 18650 | -6/Factory | Repaired Med. Treads 19496 | -6/Factory | Discovered new exit (range 5) 19521 | -6/Factory | Identified exit to Factory 19857 | -6/Factory | Build established: Hacker-Skirmisher 20272 | -6/Factory | Fabricated Hyp. Gauss Rifle? 20494 | -6/Factory | Fabricated Hyp. Gauss Rifle (x2) 21352 | -6/Factory | Build established: Hacker-Mutant 21564 | -6/Factory | Fabricated Hvy. Treads (x2) 21617 | -6/Factory | Fabricated Hvy. Treads (x2) 21651 | -6/Factory | Fabricated Huge Storage Unit (x1) 21673 | -6/Factory | Build established: Hacker-Skirmisher 21703 | -6/Factory | Fabricated Hyp. Gauss Rifle? 21935 | -6/Factory | Entered Lower Caves 22174 | -6/Lower Caves | Discovered new exit (range 5) 22175 | -6/Lower Caves | A Derelict revealed a hidden shortcut to meet someone special 22184 | -6/Lower Caves | Identified exit to Data Miner 22190 | -6/Lower Caves | Identified exit to Lower Caves 22192 | -6/Lower Caves | Entered another Lower Caves area 22195 | -6/Lower Caves | Discovered exit to Factory (range 10) 22380 | -6/Lower Caves | Build established: Hacker-Mutant 22495 | -6/Lower Caves | Encountered a Warlord checkpoint 22578 | -6/Lower Caves | Learned location of Extension (-4) 22724 | -6/Lower Caves | Build established: Hacker-Skirmisher 22841 | -6/Lower Caves | Discovered exit to Data Miner (range 5) 23029 | -6/Lower Caves | Build established: Hacker-Mutant 23219 | -6/Lower Caves | Entered Data Miner 23219 | -6/Data Miner | Discovered new exit (range 6) 23250 | -6/Data Miner | Met Data Miner 23285 | -6/Data Miner | Learned location of Section 7 (-2) 23285 | -6/Data Miner | Acquired the access code to Warlord's prototype stash 23315 | -6/Data Miner | Received God Mode back door access code from Data Miner 23374 | -6/Data Miner | Data Conduit disabled 23578 | -6/Data Miner | Identified exit to Proximity Caves 23579 | -6/Data Miner | Entered Proximity Caves 23731 | -5/Proximity Caves | Learned 8 Factory zone layouts 23771 | -5/Proximity Caves | Build established: Machinist-Skirmisher 23944 | -5/Proximity Caves | Learned Factory terminal intel 23958 | -5/Proximity Caves | Discovered exit to Factory (range 15) 24116 | -5/Proximity Caves | Entered Factory 24116 | -5/Factory | Evolved 2 slots: Utility x1, Weapon x1 24117 | -5/Factory | Identified exit to Factory 24118 | -5/Factory | Loaded intel: 20 terminal locations 24404 | -5/Factory | Build established: Hacker-Skirmisher 25187 | -5/Factory | Identified exit to Upper Caves 25683 | -5/Factory | Discovered exit to Factory (range 15) 26176 | -5/Factory | Fabricated Lrn. Sensor Array? 26349 | -5/Factory | Fabricated Hyp. Coil Gun (x2) 26455 | -5/Factory | Fabricated Hyp. Coil Gun (x2) 26524 | -5/Factory | Local fabrication network quarantined 26723 | -5/Factory | Entered Upper Caves 27012 | -5/Upper Caves | Learned 4 Factory zone layouts 27259 | -5/Upper Caves | Encountered a Warlord checkpoint 27503 | -5/Upper Caves | Build established: Hacker-Mutant 27548 | -5/Upper Caves | Discovered new exit (range 5) 27556 | -5/Upper Caves | Identified exit to Upper Caves 27557 | -5/Upper Caves | Entered another Upper Caves area 27558 | -5/Upper Caves | Encountered a Warlord checkpoint 27558 | -5/Upper Caves | Discovered exit to Factory (range 11) 27636 | -5/Upper Caves | Learned Factory garrison access intel 27833 | -5/Upper Caves | Discovered new exit (range 9) 27846 | -5/Upper Caves | Identified exit to Warlord 27879 | -5/Upper Caves | Entered Warlord 27923 | -5/Warlord | System corruption cleaned by Quarantine Array 28288 | -5/Warlord | Met Warlord 28307 | -5/Warlord | Opened Warlord's prototype stash 28313 | -5/Warlord | Warlord's base attacked by MAIN.C 28318 | -5/Warlord | Found Prototype Device 28318 | -5/Warlord | Identified Thermal Barrier 28330 | -5/Warlord | Found Prototype Hackware 28340 | -5/Warlord | Found Prototype Processor 28663 | -5/Warlord | Warlord forces counterattacked 28742 | -5/Warlord | Spotted Striker 28908 | -5/Warlord | Spotted Striker 28933 | -5/Warlord | Spotted Striker 28953 | -5/Warlord | Spotted Striker 28988 | -5/Warlord | Warlord base infiltrated, sounded retreat 28990 | -5/Warlord | Spotted Striker 29016 | -5/Warlord | Destroyed Striker 29070 | -5/Warlord | Spotted Executioner 29131 | -5/Warlord | Spotted Executioner 29132 | -5/Warlord | Spotted Executioner 29133 | -5/Warlord | Destroyed Executioner 29136 | -5/Warlord | Destroyed Executioner 29194 | -5/Warlord | Discovered new exit (range 14) 29283 | -5/Warlord | Entered Proximity Caves 29283 | -4/Proximity Caves | Accompanied by 2 allies 29305 | -4/Proximity Caves | Build established: Hacker-Gunner 29649 | -4/Proximity Caves | Discovered exit to Factory (range 11) 29675 | -4/Proximity Caves | Entered Factory 29675 | -4/Factory | Accompanied by 2 allies 29675 | -4/Factory | Evolved 2 slots: Utility x2 29676 | -4/Factory | Identified exit to Research 29677 | -4/Factory | Loaded intel: 4 garrison access locations 29782 | -4/Factory | Identified exit to Upper Caves 29782 | -4/Factory | Identified exit to Extension 29782 | -4/Factory | Identified exit to Armory 30254 | -4/Factory | Build established: Hacker-Mutant 30259 | -4/Factory | Crushed by falling debris 30260 | -4/Factory | System corruption reached 10% 30290 | -4/Factory | Lost 3 parts (2u1w) 30406 | -4/Factory | Identified System Mapper 30537 | -4/Factory | Fabricated Exp. Targeting Computer? 30788 | -4/Factory | Build established: Hacker-Gunner 31121 | -4/Factory | Entered Extension 31371 | -4/Extension | Disrupted transfer network 31457 | -4/Extension | Rescued a captive Derelict 31460 | -4/Extension | Rescued a captive Derelict 31587 | -4/Extension | Lost 3 parts (1u2w) 31628 | -4/Extension | Destroyed 9 combat bots 31668 | -4/Extension | Rescued A7 32023 | -4/Extension | Spotted B-86 Titan 32036 | -4/Extension | Spotted B-86 Titan 32055 | -4/Extension | Allies destroyed B-86 Titan 32080 | -4/Extension | Allies destroyed B-86 Titan 32107 | -4/Extension | Lost 6 parts (1p1n2u2w) 32121 | -4/Extension | First assault squad dispatched 32133 | -4/Extension | System corruption reached 30% 32176 | -4/Extension | Rescued a captive Derelict 32177 | -4/Extension | Rescued a captive Derelict 32419 | -4/Extension | Build established: Scavenger-Skirmisher 32421 | -4/Extension | Rescued a captive Derelict 32425 | -4/Extension | Rescued a captive Derelict 32619 | -4/Extension | Discovered exit to Research (range 11) 32621 | -4/Extension | Discovered new exit (range 7) 32647 | -4/Extension | Identified exit to Cetus 32651 | -4/Extension | Entered Cetus 32651 | -4/Cetus | Accompanied by 1 ally (A7) 32656 | -4/Cetus | Acquired a Cetus Manufacturing Module code from A7 32675 | -4/Cetus | Spotted Cetus Guard 32677 | -4/Cetus | Spotted Cetus Guard 32679 | -4/Cetus | Destroyed Cetus Guard 32682 | -4/Cetus | Destroyed Cetus Guard 32682 | -4/Cetus | Spotted Cetus Guard 32688 | -4/Cetus | Destroyed Cetus Guard 32688 | -4/Cetus | Spotted Cetus Guard 32699 | -4/Cetus | Destroyed Cetus Guard 32820 | -4/Cetus | Destroyed 8 combat bots 32823 | -4/Cetus | Started Cetus Manufacturing Module 32831 | -4/Cetus | Destroyed A7 32837 | -4/Cetus | Extracted ID and sensor layout for unrecognized location from A7's data core 32848 | -4/Cetus | Manufactured an Enhanced Grunt 32873 | -4/Cetus | Manufactured an Enhanced Grunt 32898 | -4/Cetus | Manufactured an Enhanced Grunt 32923 | -4/Cetus | Manufactured an Enhanced Grunt 32948 | -4/Cetus | Manufactured an Enhanced Grunt 32983 | -4/Cetus | Discovered new exit (range 15) 33012 | -4/Cetus | Spotted Cetus Guard 33012 | -4/Cetus | Destroyed Cetus Guard 33028 | -4/Cetus | Spotted Cetus Guard 33029 | -4/Cetus | Destroyed Cetus Guard 33029 | -4/Cetus | Destroyed Cetus Guard 33031 | -4/Cetus | Build established: Scavenger-Gunner 33032 | -4/Cetus | Destroyed Cetus Guard 33058 | -4/Cetus | Discovered exit to Research (range 16) 33071 | -4/Cetus | Met Revision 17 33074 | -4/Cetus | Destroyed Revision 17 33190 | -4/Cetus | Identified exit to Archives 33197 | -4/Cetus | Entered Archives 33197 | -4/Archives | Accompanied by 2 allies 33265 | -4/Archives | Discovered new exit (range 15) 33379 | -4/Archives | Identified exit to Hub_04(d) 33571 | -4/Archives | Build established: Hacker-Mutant 33870 | -4/Archives | Discovered exit to Research (range 16) 34120 | -4/Archives | Discovered exit to Hub_04(d) (range 14) 34359 | -4/Archives | Entered Hub_04(d) 34359 | -4/Hub_04(d) | Accompanied by 2 allies 34526 | -4/Hub_04(d) | Discovered exit to Research (range 11) 34540 | -4/Hub_04(d) | Garrison activated, responded to threat 34562 | -4/Hub_04(d) | Entered Research 34562 | -3/Research | Evolved 2 slots: Utility x2 34668 | -3/Research | Allied Derelicts emerged from ambush trap array 34829 | -3/Research | Build established: Scavenger-Gunner 34934 | -3/Research | Fabricated Exp. Targeting Computer (x1) 34964 | -3/Research | Fabricated Imp. Weapon Cycler (x2) 34991 | -3/Research | Fabricated Hyp. Coil Gun (x2) 34992 | -3/Research | P-80 Master assimilated allied ZG-2JC(g) 35059 | -3/Research | Local fabrication network quarantined 35312 | -3/Research | First assault squad dispatched 35360 | -3/Research | Identified Spectral Analyzer 35664 | -3/Research | Found Fusion Bomb Launcher 35757 | -3/Research | System corruption reached 10% 36096 | -3/Research | Cargo convoy interrupted 36100 | -3/Research | Destroyed 9 combat bots 36111 | -3/Research | Self-destructed Last Messages --------------- 36104_ Slug penetrates Wall. 36104_ Critical hit (Destroy). 36106_ Penetrated by Slug. 36106_ Slug penetrates Earth. 36106_ Slug penetrates Wall. 36107_ QIMZ6DYO>C2 K7HCOLOD/%,1# 36107_ Slug penetrates Wall. 36107_ Penetrated by Slug. 36109_ Slug penetrates Wall. 36109_ Penetrated by Slug. 36109_ Centrium Medium Armor Plating destroyed. 36109_ Acquired 71 matter. 36109_ Slug penetrates Earth. 36110_ C-30 ARC bursts open, deploying its payload. 36110_ P-80 Master unfolds itself. 36110_ X-82 Rainmaker unfolds itself. 36110_ U-05 Engineer lays Concrete. 36111_ Imp. KE Penetrator blown off. 36111_ Hyp. Coil Gun blown off. 36111_ E-15 Imp destroyed. Map ----- +----------------------------------------------------+ | ?????????????????????# #??????????????????? | | ?????????????????????# #??????????????????? | | ?????????????????????# #??????????????????? | | ?????????????????????# #??????????????????? | | ?????????????????????# #??????????????????? | | ??????????????? ??# #??????????????????? | | ?????????????? ??# #??????????????????? | | ???????????? ?# #??????????????????? | | ???????????? ?# #??????????????????? | | ???????????? ######+#############+#???????? | | ???????????? ??????? | | ???????????? ??????? | | ???????????? ??????? | | ???????????? !! ??????? | | ???????????? |w ??????? | | ?????????###+########h####u# ;##########+#???????? | | ?????????# #?????????????????? | | ?????????# ##????????????????? | | ?????????# ]% !% !;#????????????????? | | ?????????# ! # [ #?????????????????? | | ?????????# %=! ]#?????????????????? | | ?????????# == #?????????????????? | | ?????????########### = % % #?????????????????? | | ?????????A H [!% #?????????????????? | | ????????????######### !%|!| #?????????????????? | | ????????????????????# *![@!! ##?????????????????? | | ????????????????????####**!!###??????????????????? | | ??????????????????????]p#x#! #???????????????????? | | ????????????????????? =]#h####???????????????????? | | ???????????????????? p!h??????????????????????? | | ?????????????????? !? ###??????????????????????? | | ?????????????????# ?? ?????????????????????????? | | ?????????????????# ! ?? ?????????????????????????? | | ?????????????????###???#?????????????????????????? | | ?????????????????????????????????????????????????? | | ?????????????????????????????????????????????????? | | ?????????????????????????????????????????????????? | | ?????????????????????????????????????????????????? | | ???????????????????????????A?????????????????????? | | ?????????????????????????????????????????????????? | | ?????????????????????????????????????????????????? | | ?????????????????????????????????????????????????? | | ?????????????????????????????????????????????????? | | ?????????????????????????????????????????????????? | | ?????????????????????????????????????????????????? | | ?????????????????????????????????????????????????? | | ?????????????????????????????????????????????????? | | ?????????????????????????????????????????????????? | | ?????????????????????????????????????????????????? | | ?????????????????????????????????????????????????? | +----------------------------------------------------+ Best States ------------- Heat Dissipation 77 Energy Generation 29 Energy Capacity 350 Matter Stores 300 Matter Capacity 300 Sight Range 16 Robot Scan Range 18 Terrain Scan Density 10 Jamming Range 16 Armor Coverage 600 Weapon Cycling 20 Evasion (%) 50 Targeting Accuracy 12 Target Analysis 6 Recoil Reduction 4 Offensive Hacking 52 Defensive Hacking 14 Item Schematics ----------------- Gauss Rifle | -8/Materials | Scanalyzed Huge Storage Unit | -8/Materials | Hacked Adv. Targeting Computer | -8/Materials | Hacked Med. Treads | -6/Factory | Scanalyzed Hyp. Gauss Rifle | -6/Factory | Hacked Hvy. Treads | -6/Factory | Hacked Combat Drone Bay | -6/Data Miner | Free Lgt. Regenerative Plating | -6/Data Miner | Free Exp. Flexi-carbon Leg | -6/Data Miner | Free Exp. Cesium-ion Thruster | -6/Data Miner | Free Exp. Terrain Scanner | -6/Data Miner | Free Exp. Terrain Scan Processor | -6/Data Miner | Free Exp. Targeting Computer | -6/Data Miner | Free Plasma Sword | -6/Data Miner | Free Kinetic Spear | -6/Data Miner | Free Hyp. Coil Gun | -5/Factory | Scanalyzed Hacking Suite | -5/Factory | Scanalyzed Lrn. Sensor Array | -5/Factory | Hacked Imp. Weapon Cycler | -5/Factory | Hacked Helical Railgun | -4/Factory | Scanalyzed Exp. Weapon Shielding | -4/Factory | Hacked Robot Schematics ------------------ S-27 Virus | -6/Data Miner | Free G-50 Soldier | -6/Data Miner | Free G-67 Veteran | -6/Data Miner | Free I-36 Angel | -6/Data Miner | Free I-47 Archangel | -6/Data Miner | Free Fabricated ------------ Huge Storage Unit | x1 | -7/Factory Hyp. Gauss Rifle | x2 | -6/Factory Hyp. Gauss Rifle | x2 | -6/Factory Hvy. Treads | x2 | -6/Factory Hvy. Treads | x2 | -6/Factory Huge Storage Unit | x1 | -6/Factory Hyp. Gauss Rifle | x2 | -6/Factory Lrn. Sensor Array | x1 | -5/Factory Hyp. Coil Gun | x2 | -5/Factory Hyp. Coil Gun | x2 | -5/Factory Exp. Targeting Computer | x1 | -4/Factory Exp. Targeting Computer | x1 | -3/Research Imp. Weapon Cycler | x2 | -3/Research Hyp. Coil Gun | x2 | -3/Research Alien Tech Used ----------------- None Achievements -------------- None Challenges ------------ None Game ------ Seed TiamatDerelictChip Manual? 0 Play Time 03:12:57 Cumulative 1326.3 hours Start 2021.07.17 @ 12:16:10 End 2021.07.17 @ 22:44:31 Sessions 3 Manual Loads 0 Difficulty Rogue Special Mode None Game No. 450 Rogue 450 Adventurer 0 Explorer 0 Win Type - Total 94 Types 20/12/37/5/1/2/15/1/1 Lore% 97 Gallery% 96 Achievement% 86 Wizard Run 0 Options --------- ASCII 0 Keyboard 0 Movement Numpad Keybinds 0 Fullscreen 1 Font 18/SmallcapsGlow Map View 76x50 Tactical HUD 1 Map Filters NONE Filters NONE Steam 1 RUN: 214d46a2-6aff-4024-9e71-eec65857b408